bitfinex/quotes_BTCUSD_20220201
["timestamp","ask_amount","ask_price","bid_price","bid_amount"]
[1643718717820,0.77665,38594.0,38593.0,0.03965143]
[1643718718223,1.480351,38594.0,38593.0,0.03965143]
[1643718718422,1.430351,38594.0,38592.0,0.04085259]
[1643718718623,0.87774,38594.0,38592.0,0.04085259]
[1643718719131,0.77665,38594.0,38593.0,0.91187054]
[1643718719325,0.77665,38594.0,38593.0,1.26198154]
[1643718719524,0.77665,38594.0,38593.0,1.01928758]
[1643718720226,0.77665,38594.0,38593.0,0.56928758]
[1643718720630,0.77665,38594.0,38589.0,0.259087]
[1643718720828,0.77665,38594.0,38592.0,0.00169803]
[1643718721469,0.91875137,38594.0,38592.0,0.00169803]
[1643718721673,0.10399876,38593.0,38589.0,0.22770323]
[1643718721871,0.10399876,38593.0,38591.0,0.00169805]
[1643718722870,0.10399876,38593.0,38585.0,0.4955]
[1643718723073,0.14215663,38587.0,38585.0,0.4955]
[1643718723272,0.08805163,38586.0,38585.0,0.4955]
[1643718724076,0.08805163,38586.0,38585.0,0.845611]
[1643718724474,0.77665,38594.0,38585.0,0.845611]
[1643718724676,0.77665,38594.0,38585.0,0.4955]
[1643718724873,0.17220332,38591.0,38585.0,0.4955]
[1643718725427,0.48878123,38591.0,38585.0,0.4955]
[1643718725627,0.08694106,38588.0,38586.0,0.00169815]
[1643718726629,0.08694106,38588.0,38585.0,0.5155254]
[1643718727834,0.17732106,38588.0,38585.0,0.51382722]
[1643718728032,0.350111,38587.0,38585.0,0.02002543]
[1643718728231,0.17732106,38588.0,38585.0,0.00169821]
[1643718728430,0.77665,38586.0,38585.0,0.00169821]
[1643718728880,0.77665,38586.0,38581.0,0.01]
[1643718729179,0.16077038,38584.0,38582.0,0.28371248]
[1643718729381,0.16077038,38584.0,38581.0,0.01]
[1643718729877,0.77665,38586.0,38581.0,0.01]
[1643718730279,0.77665,38586.0,38582.0,0.35180929]
[1643718730479,0.77665,38586.0,38583.0,0.19081803]
[1643718730679,0.77665,38586.0,38584.0,0.350111]
[1643718730878,0.77665,38586.0,38585.0,0.30157922]
[1643718731077,0.77665,38586.0,38585.0,0.532169]
[1643718731278,0.77665,38586.0,38585.0,0.479669]
[1643718731679,0.77665,38586.0,38585.0,0.350111]
[1643718731885,0.77665,38586.0,38584.0,0.00169824]
[1643718732632,0.85704,38586.0,38581.0,0.01]
[1643718732826,0.85704,38586.0,38583.0,0.00169825]
[1643718733826,0.85704,38586.0,38581.0,0.01]
[1643718733827,0.23010602,38585.0,38581.0,0.01]
[1643718734028,0.41087039,38584.0,38583.0,0.00169827]
[1643718735027,0.41087039,38584.0,38581.0,0.01]
[1643718735227,0.41087039,38584.0,38582.0,0.0016983]
[1643718735628,0.230245,38583.0,38582.0,0.0016983]
[1643718735829,0.08532,38583.0,38582.0,0.0016983]
[1643718736228,0.08532,38583.0,38581.0,0.01]
[1643718736471,0.13197943,38582.0,38581.0,0.01169832]
[1643718737271,0.13197943,38582.0,38581.0,0.01]
[1643718738273,0.77665,38586.0,38581.0,0.01]
[1643718738674,0.77665,38586.0,38582.0,0.00181099]
[1643718738872,0.2267359,38585.0,38582.0,0.00181099]
[1643718739274,0.13004488,38584.0,38582.0,0.00181099]
[1643718739679,0.13004488,38584.0,38581.0,0.01]
[1643718739875,0.13004488,38584.0,38581.0,0.011811]
[1643718741025,0.13004488,38584.0,38581.0,0.01]
[1643718741225,0.23183069,38583.0,38581.0,0.01181101]
[1643718741425,0.13004488,38584.0,38581.0,0.01181101]
[1643718742125,0.13004488,38584.0,38581.0,0.01]
[1643718742329,0.13004488,38584.0,38581.0,0.01181101]
[1643718743330,0.13004488,38584.0,38581.0,0.01]
[1643718743534,0.13004488,38584.0,38581.0,0.01181101]
[1643718743731,0.61749262,38583.0,38581.0,0.01181101]
[1643718743975,0.25816738,38582.0,38581.0,0.01181101]
[1643718744177,0.60827838,38582.0,38581.0,0.01181101]
[1643718744478,0.70827838,38582.0,38581.0,0.01181101]
[1643718744676,0.450111,38582.0,38581.0,0.01]
[1643718744883,1.226761,38582.0,38581.0,0.01]
[1643718745077,1.126761,38582.0,38581.0,0.01]
[1643718745279,0.77665,38582.0,38581.0,0.01]
[1643718746979,1.226761,38582.0,38581.0,0.01]
[1643718747181,1.38953102,38582.0,38581.0,0.01]
[1643718747481,1.28953102,38582.0,38581.0,0.01]
[1643718747727,1.38953102,38582.0,38581.0,0.01]
[1643718748725,1.03942002,38582.0,38581.0,0.01]
[1643718749125,1.28953102,38582.0,38581.0,0.01]
[1643718749528,1.38953102,38582.0,38581.0,0.01]
[1643718751776,0.93942002,38582.0,38581.0,0.01]
[1643718752177,0.77665,38582.0,38581.0,0.01]
[1643718752580,0.77665,38582.0,38581.0,0.51]
[1643718752782,0.77665,38582.0,38581.0,0.62962434]
[1643718752980,0.77665,38582.0,38581.0,0.01]
[1643718754177,0.77665,38582.0,38581.0,0.23030795]
[1643718754479,0.77665,38582.0,38581.0,0.01]
[1643718757032,0.77165,38582.0,38581.0,0.01]
[1643718757230,0.96953888,38582.0,38581.0,0.01]
[1643718757430,0.86953888,38582.0,38581.0,0.01]
[1643718757932,1.00972499,38582.0,38581.0,0.01]
[1643718758129,0.91183611,38582.0,38581.0,0.01]
[1643718759280,1.0056876,38582.0,38581.0,0.01]
[1643718759580,0.77165,38582.0,38581.0,0.01]
[1643718763826,0.77165,38582.0,38581.0,0.360111]
[1643718764025,0.77165,38582.0,38581.0,0.01]
[1643718764627,0.77165,38582.0,38581.0,0.360111]
[1643718764828,0.77165,38582.0,38581.0,0.58289278]
[1643718765027,0.77165,38582.0,38581.0,0.360111]
[1643718766028,0.77165,38582.0,38581.0,0.01]
[1643718766473,0.77165,38582.0,38581.0,0.412611]
[1643718767279,0.77165,38582.0,38581.0,0.0625]
[1643718771230,0.77165,38582.0,38581.0,0.01]
[1643718772229,1.43580707,38582.0,38581.0,0.01]
[1643718772424,1.08569607,38582.0,38581.0,0.01]
[1643718773877,0.77165,38582.0,38581.0,0.01]
[1643718774979,0.77165,38582.0,38581.0,0.412611]
[1643718777079,0.77165,38582.0,38581.0,0.65919623]
[1643718777279,0.77165,38582.0,38581.0,1.50919623]
[1643718778126,0.77165,38582.0,38581.0,1.45919623]
[1643718778525,0.7715558,38582.0,38581.0,0.70919623]
[1643718779125,0.7715558,38582.0,38581.0,0.462611]
[1643718779332,0.3272933,38609.0,38584.0,0.064771]
[1643718779533,0.001,38610.0,38593.0,0.1]
[1643718779833,0.001,38610.0,38597.0,0.1]
[1643718780033,0.001,38610.0,38606.0,0.1]
[1643718780228,0.001,38610.0,38598.0,0.76088952]
[1643718780229,0.001,38610.0,38608.0,0.23994017]
[1643718780427,0.001,38610.0,38609.0,0.467349]
[1643718782082,0.001,38610.0,38609.0,0.69306252]
[1643718782280,0.001,38610.0,38609.0,0.467349]
[1643718782681,0.001,38610.0,38609.0,0.69263202]
[1643718783482,0.001,38610.0,38609.0,0.74263202]
[1643718784484,0.0001,38611.0,38610.0,1.05]
[1643718784684,0.002,38614.0,38613.0,0.064727]
[1643718784883,0.002,38614.0,38613.0,0.517338]
[1643718786134,0.002,38619.0,38614.0,0.4]
[1643718786338,0.0001,38619.0,38616.0,0.12296514]
[1643718786543,0.002,38623.0,38619.0,0.7]
[1643718786840,0.002,38623.0,38620.0,0.69498248]
[1643718787036,0.002,38623.0,38621.0,0.286513]
[1643718787235,0.002,38623.0,38622.0,0.62142552]
[1643718787435,0.002,38623.0,38622.0,0.67392552]
[1643718787835,0.001,38628.0,38622.0,0.80724552]
[1643718788034,0.003,38625.0,38623.0,0.12941]
[1643718788234,0.003,38625.0,38624.0,0.400111]
[1643718788436,0.003,38625.0,38624.0,0.452611]
[1643718789980,0.003,38625.0,38624.0,0.69941206]
[1643718790685,0.003,38625.0,38624.0,0.0525]
[1643718790882,0.003,38625.0,38624.0,0.402611]
[1643718792183,0.003,38625.0,38624.0,0.452611]
[1643718793431,0.003,38625.0,38624.0,0.402611]
[1643718793632,0.003,38625.0,38623.0,0.06651371]
[1643718793830,0.003,38625.0,38624.0,0.350111]
[1643718794031,0.003,38625.0,38623.0,0.06651371]
[1643718794231,0.07575031,38624.0,38623.0,0.06651371]
[1643718794433,0.07575031,38624.0,38623.0,0.00180871]
[1643718794831,0.003,38625.0,38623.0,0.00180871]
[1643718795032,0.003,38625.0,38620.0,0.02018551]
[1643718795232,0.003,38625.0,38622.0,0.00180874]
[1643718795233,0.41293185,38624.0,38622.0,0.00180874]
[1643718796132,0.41293185,38624.0,38618.0,0.129422]
[1643718796376,0.41293185,38624.0,38621.0,0.00180876]
[1643718796781,0.34257796,38623.0,38621.0,0.00180876]
[1643718796981,1.79492352,38622.0,38621.0,0.00180876]
[1643718797183,0.59492352,38622.0,38621.0,0.00180876]
[1643718797379,1.126881,38622.0,38610.0,0.20416459]
[1643718797581,0.15796196,38621.0,38620.0,0.0018088]
[1643718797780,1.65555014,38621.0,38620.0,0.0018088]
[1643718797979,1.49758818,38621.0,38620.0,0.0018088]
[1643718798180,1.59758818,38621.0,38620.0,0.0018088]
[1643718798582,1.59758818,38621.0,38612.0,0.064745]
[1643718798583,1.126881,38621.0,38612.0,0.064745]
[1643718798789,0.77677,38621.0,38619.0,0.00180883]
[1643718798986,0.77677,38621.0,38620.0,0.402611]
[1643718799183,0.77677,38621.0,38620.0,0.502611]
[1643718800434,0.77677,38621.0,38620.0,0.567331]
[1643718801134,0.77677,38621.0,38620.0,0.94717233]
[1643718801333,0.003,38625.0,38622.0,0.064715]
[1643718801534,0.003,38625.0,38623.0,0.65836118]
[1643718801736,0.003,38625.0,38624.0,0.44410223]
[1643718802033,0.003,38625.0,38624.0,0.79421323]
[1643718803134,0.003,38625.0,38624.0,0.58421192]
[1643718803736,0.003,38625.0,38624.0,0.350111]
[1643718804182,0.003,38625.0,38624.0,0.57931466]
[1643718806684,0.003,38625.0,38624.0,0.350111]
[1643718807288,0.003,38625.0,38623.0,0.00180871]
[1643718808238,0.08482172,38622.0,38620.0,0.03908054]
[1643718808437,0.08482172,38622.0,38621.0,0.350111]
[1643718808637,0.08482172,38622.0,38620.0,0.03908054]
[1643718809037,0.08482172,38622.0,38619.0,0.06473]
[1643718809235,0.08482172,38622.0,38620.0,0.350111]
[1643718810141,0.0847047,38622.0,38620.0,0.350111]
[1643718810538,0.003,38625.0,38620.0,0.350111]
[1643718810741,0.003,38625.0,38620.0,0.70637123]
[1643718811779,0.00282262,38626.0,38620.0,0.479555]
[1643718811980,0.00282262,38626.0,38621.0,0.00180877]
[1643718812180,0.00282262,38626.0,38622.0,0.350111]
[1643718812985,0.00282262,38626.0,38620.0,0.129444]
[1643718813183,0.00282262,38626.0,38622.0,0.00180873]
[1643718814182,0.00282262,38626.0,38621.0,0.01929316]
[1643718814385,0.00282262,38626.0,38622.0,0.00180873]
[1643718815431,0.00282262,38626.0,38620.0,0.129444]
[1643718815630,0.00282262,38626.0,38622.0,0.00180873]
[1643718816131,0.00282262,38626.0,38623.0,0.350111]
[1643718816329,0.00282262,38626.0,38624.0,0.36433015]
[1643718816528,0.00282262,38626.0,38625.0,0.350111]
[1643718820185,0.00282262,38626.0,38625.0,0.58286583]
[1643718820586,0.00282262,38626.0,38625.0,0.350111]
[1643718820983,0.00282262,38626.0,38625.0,0.5811461]
[1643718822190,0.00282262,38626.0,38625.0,0.57025143]
[1643718823033,0.00282262,38626.0,38625.0,0.62025143]
[1643718823636,0.001,38627.0,38625.0,0.62025143]
[1643718823836,0.001,38627.0,38626.0,1.42646963]
[1643718824035,0.001,38627.0,38626.0,1.514813]
[1643718824235,0.001,38627.0,38626.0,0.51471972]
[1643718824638,0.001,38629.0,38626.0,1.17598769]
[1643718824936,0.001,38629.0,38627.0,0.450111]
[1643718825337,0.001,38629.0,38627.0,0.350111]
[1643718825937,0.001,38629.0,38628.0,0.26376515]
[1643718826237,0.001,38629.0,38628.0,0.82960579]
[1643718826877,0.001,38629.0,38628.0,0.61387615]
[1643718827081,0.001,38629.0,38628.0,0.350111]
[1643718827278,0.001,38629.0,38627.0,0.350111]
[1643718827879,0.001,38629.0,38627.0,0.57659078]
[1643718828079,0.001,38629.0,38628.0,0.28045067]
[1643718828282,0.001,38629.0,38628.0,0.85606582]
[1643718828678,0.001,38629.0,38628.0,0.63056167]
[1643718829079,0.001,38629.0,38628.0,0.350111]
[1643718829480,0.001,38629.0,38628.0,0.59492352]
[1643718829679,0.001,38629.0,38628.0,0.350111]
[1643718829880,0.001,38629.0,38628.0,0.450111]
[1643718830139,0.001,38629.0,38628.0,0.350111]
[1643718831730,0.001,38629.0,38628.0,0.6137292]
[1643718833231,0.00096731,38630.0,38628.0,0.7137292]
[1643718833436,0.002,38632.0,38630.0,0.129395]
[1643718833634,0.002,38632.0,38631.0,0.59359394]
[1643718833893,0.002,38632.0,38631.0,0.350111]
[1643718834091,0.002,38632.0,38631.0,0.57100971]
[1643718834291,0.002,38632.0,38631.0,0.350111]
[1643718834491,0.002,38632.0,38631.0,0.57274055]
[1643718834691,0.002,38632.0,38631.0,0.67274055]
[1643718834892,0.002,38632.0,38631.0,0.57274055]
[1643718835691,0.002,38632.0,38631.0,0.350111]
[1643718836691,0.002,38632.0,38631.0,0.56980125]
[1643718838329,0.002,38632.0,38631.0,0.350111]
[1643718838927,0.002,38632.0,38631.0,0.57653262]
[1643718839830,0.002,38632.0,38631.0,0.400111]
[1643718840229,0.002,38632.0,38631.0,0.500111]
[1643718840430,0.002,38632.0,38631.0,0.400111]
[1643718841234,0.002,38632.0,38631.0,0.500111]
[1643718841478,0.003,38635.0,38631.0,0.400111]
[1643718841479,0.16423783,38634.0,38631.0,0.400111]
[1643718841680,0.16423783,38634.0,38632.0,0.23452535]
[1643718841880,0.16423783,38634.0,38633.0,0.350111]
[1643718842080,0.16423783,38634.0,38633.0,0.464808]
[1643718843982,0.16423783,38634.0,38633.0,0.75197517]
[1643718844283,0.1101609,38634.0,38633.0,1.95197517]
[1643718844483,0.003,38635.0,38634.0,1.3]
[1643718844683,0.003,38635.0,38634.0,1.697811]
[1643718844883,0.003,38635.0,38634.0,1.96863871]
[1643718845145,0.00231316,38637.0,38634.0,1.96863871]
[1643718845338,0.00231316,38637.0,38635.0,0.71272625]
[1643718845538,0.00231316,38637.0,38636.0,1.2985998]
[1643718845738,0.001,38642.0,38637.0,0.85]
[1643718845739,0.001,38641.0,38637.0,0.85]
[1643718845937,0.001,38641.0,38638.0,0.66026929]
[1643718846137,0.001,38641.0,38638.0,0.76026929]
[1643718846341,0.001,38641.0,38638.0,0.81026929]
[1643718846939,0.001,38641.0,38639.0,0.19403]
[1643718846940,0.00245119,38641.0,38639.0,0.19403]
[1643718847240,0.00245119,38641.0,38640.0,1.07268025]
[1643718847636,0.00245119,38641.0,38640.0,1.17268025]
[1643718847838,0.001,38641.0,38640.0,1.17268025]
[1643718848240,0.001,38641.0,38640.0,0.93338084]
[1643718848638,0.001,38641.0,38640.0,0.83338084]
[1643718850088,0.00245119,38642.0,38640.0,0.83338084]
[1643718850288,0.001,38642.0,38640.0,1.14569211]
[1643718850489,0.00145119,38645.0,38641.0,0.7]
[1643718850693,0.0016999,38655.0,38644.0,2.728]
[1643718850891,0.0016999,38655.0,38647.0,1.378]
[1643718851089,0.0016999,38655.0,38649.0,0.19397]
[1643718851291,0.045,38652.0,38651.0,1.064658]
[1643718851498,0.001,38664.0,38652.0,0.03516805]
[1643718851692,0.001,38664.0,38653.0,0.397668]
[1643718851891,0.001,38664.0,38654.0,0.129319]
[1643718852089,0.38911641,38663.0,38655.0,0.349968]
[1643718852390,0.00031318,38663.0,38656.0,0.16408657]
[1643718852647,0.00031318,38663.0,38657.0,0.349968]
[1643718852832,0.00031318,38663.0,38658.0,0.23621859]
[1643718853030,0.00031318,38663.0,38658.0,0.349968]
[1643718853231,0.00031318,38663.0,38657.0,0.399968]
[1643718853431,0.00031318,38663.0,38657.0,0.447668]
[1643718853731,0.00031318,38663.0,38658.0,0.129322]
[1643718853930,0.00031318,38663.0,38658.0,1.02338464]
[1643718854133,0.00031318,38663.0,38658.0,0.79865272]
[1643718854134,0.00173103,38660.0,38658.0,0.79865272]
[1643718854332,0.00173103,38660.0,38659.0,0.349968]
[1643718854531,0.00173103,38660.0,38659.0,0.57031978]
[1643718855133,0.001,38660.0,38659.0,0.57031978]
[1643718855731,0.001,38660.0,38659.0,0.62031978]
[1643718856380,0.001,38660.0,38659.0,0.399968]
[1643718856581,0.001,38660.0,38659.0,0.61889262]
[1643718856783,0.001,38660.0,38659.0,0.56889262]
[1643718858584,0.001,38660.0,38659.0,0.349968]
[1643718860153,0.001,38660.0,38655.0,0.2040545]
[1643718860154,0.09145213,38662.0,38655.0,0.0191955]
[1643718860345,0.00031318,38663.0,38652.0,0.064668]
[1643718860346,0.24095482,38663.0,38652.0,0.064668]
[1643718860743,0.24095482,38663.0,38653.0,0.064669]
[1643718860744,0.00031318,38663.0,38653.0,0.064669]
[1643718860945,0.00031318,38663.0,38654.0,0.29777855]
[1643718861149,0.00031318,38663.0,38661.0,0.00586039]
[1643718861345,0.00031318,38663.0,38662.0,0.349968]
[1643718861945,0.00031318,38663.0,38662.0,0.59874978]
[1643718862345,0.00031318,38663.0,38662.0,0.60461017]
[1643718862945,0.00031318,38663.0,38662.0,0.59874978]
[1643718863147,0.00031318,38663.0,38662.0,0.349968]
[1643718863749,0.00031318,38663.0,38661.0,0.349968]
[1643718863984,0.00031318,38663.0,38660.0,0.349968]
[1643718864184,0.00031318,38663.0,38661.0,0.22254803]
[1643718864383,0.00031318,38663.0,38662.0,0.349968]
[1643718864585,0.00031318,38663.0,38658.0,0.02001986]
[1643718864793,0.00031318,38663.0,38660.0,0.00586039]
[1643718864986,0.00031318,38663.0,38661.0,0.349968]
[1643718865188,0.00031318,38663.0,38662.0,0.00586039]
[1643718865392,0.004,38665.0,38663.0,1.3]
[1643718865590,0.011,38669.0,38666.0,1.3]
[1643718865791,0.0025,38674.0,38668.0,0.00586039]
[1643718865989,0.0025,38674.0,38673.0,0.00586039]
[1643718866188,0.002,38674.0,38673.0,0.40752839]
[1643718866389,0.001,38687.0,38673.0,0.69817003]
[1643718866589,0.001,38687.0,38677.0,0.00586039]
[1643718866789,0.001,38687.0,38673.0,0.0517]
[1643718866989,0.05,38683.0,38673.0,0.0517]
[1643718867187,0.00031305,38684.0,38673.0,0.0517]
[1643718867394,0.0007142,38679.0,38674.0,0.349968]
[1643718867836,0.0007142,38679.0,38672.0,0.41399802]
[1643718868037,0.0007142,38679.0,38672.0,0.349968]
[1643718868238,0.00031305,38684.0,38671.0,0.349968]
[1643718868436,0.00062417,38677.0,38668.0,0.349968]
[1643718868636,0.00062417,38677.0,38673.0,0.0217211]
[1643718868835,0.00062417,38677.0,38674.0,0.349968]
[1643718869036,0.00062417,38677.0,38671.0,0.00586039]
[1643718869037,0.00062417,38677.0,38673.0,0.064635]
[1643718869236,0.00062417,38677.0,38674.0,0.349968]
[1643718869438,0.35208426,38681.0,38674.0,0.349968]
[1643718869637,0.00124334,38677.0,38674.0,0.349968]
[1643718870041,0.00124334,38677.0,38674.0,0.86297271]
[1643718870238,0.00124334,38677.0,38675.0,0.00586039]
[1643718870439,0.00124334,38677.0,38676.0,0.349968]
[1643718870639,0.003,38681.0,38676.0,0.68462085]
[1643718870842,0.00124334,38678.0,38676.0,0.68462085]
[1643718871041,0.00124334,38678.0,38677.0,0.36447228]
[1643718871242,0.00124334,38678.0,38677.0,0.76444028]
[1643718871482,0.003,38681.0,38677.0,0.80868754]
[1643718871683,0.003,38681.0,38678.0,0.414586]
[1643718871883,0.003,38681.0,38678.0,0.349968]
[1643718872085,0.003,38681.0,38675.0,0.22564722]
[1643718872086,0.003,38681.0,38677.0,0.349968]
[1643718872283,0.003,38681.0,38678.0,0.22766987]
[1643718872483,0.003,38681.0,38679.0,0.349968]
[1643718872687,0.003,38681.0,38677.0,0.57670448]
[1643718872886,0.003,38681.0,38677.0,0.349968]
[1643718873083,0.003,38681.0,38679.0,0.22465882]
[1643718873286,0.0041941,38681.0,38680.0,0.349968]
[1643718873484,0.0011941,38681.0,38680.0,0.349968]
[1643718873689,0.00031305,38684.0,38681.0,1.3789959]
[1643718873888,0.01890881,38687.0,38683.0,0.00586039]
[1643718874186,0.01890881,38687.0,38684.0,0.349968]
[1643718874384,0.001,38687.0,38686.0,0.07047139]
[1643718874584,0.001,38687.0,38686.0,0.42043939]
[1643718874784,0.001,38687.0,38686.0,0.47043939]
[1643718875244,0.001,38687.0,38686.0,0.81057084]
[1643718875443,0.02922436,38692.0,38686.0,0.81057084]
[1643718875639,0.02922436,38692.0,38691.0,0.00586039]
[1643718875840,0.02922436,38692.0,38691.0,0.35582839]
[1643718876241,0.02922436,38692.0,38691.0,0.349968]
[1643718876442,0.02922436,38692.0,38691.0,0.35582839]
[1643718877044,0.02922436,38692.0,38691.0,0.85161743]
[1643718877243,0.02922436,38692.0,38691.0,3.33753864]
[1643718877640,0.02922436,38692.0,38691.0,0.8164966]
[1643718878042,0.01122436,38692.0,38691.0,1.90953864]
[1643718878242,0.00141731,38693.0,38691.0,1.05953864]
[1643718878443,0.00031304,38696.0,38693.0,0.85]
[1643718878641,0.00031304,38696.0,38695.0,0.07044839]
[1643718878881,0.00031304,38696.0,38695.0,0.57211639]
[1643718879083,0.19885722,38716.0,38695.0,0.78598796]
[1643718879284,0.01777186,38722.0,38715.0,0.1]
[1643718879483,0.01777186,38722.0,38697.0,0.24304204]
[1643718879484,0.32829613,38716.0,38697.0,0.24304204]
[1643718879684,0.32829613,38716.0,38693.0,0.129176]
[1643718879891,0.1,38710.0,38690.0,0.1]
[1643718880086,0.12680184,38701.0,38695.0,0.22126421]
[1643718880285,0.34304204,38707.0,38690.0,0.10586039]
[1643718880488,0.33073567,38702.0,38687.0,0.88695362]
[1643718880683,0.33073567,38702.0,38688.0,0.349968]
[1643718880882,0.33073567,38702.0,38687.0,0.645911]
[1643718880883,0.33073567,38702.0,38690.0,0.10586039]
[1643718881285,0.24304204,38706.0,38694.0,0.1]
[1643718881486,0.24304204,38706.0,38690.0,0.17046539]
[1643718881683,0.00141377,38698.0,38690.0,0.17046539]
[1643718881883,0.24304204,38703.0,38691.0,0.349968]
[1643718882083,0.1571542,38705.0,38698.0,0.217901]
[1643718882285,0.40580727,38701.0,38690.0,0.17046539]
[1643718882486,0.40580727,38701.0,38687.0,0.129211]
[1643718882744,0.2359308,38700.0,38682.0,0.13547062]
[1643718882940,0.2359308,38700.0,38684.0,0.05]
[1643718883145,0.14727221,38696.0,38680.0,0.19433815]
[1643718883340,0.14727221,38696.0,38684.0,0.05]
[1643718883539,0.09683385,38695.0,38685.0,0.349968]
[1643718883941,0.14727221,38696.0,38680.0,0.22863454]
[1643718884149,0.1245,38708.0,38695.0,0.00586039]
[1643718884445,0.77516,38707.0,38693.0,0.0517]
[1643718884641,0.1208,38712.0,38700.0,0.00586039]
[1643718884844,0.1,38722.0,38695.0,0.00586039]
[1643718885042,0.40281292,38709.0,38708.0,0.29698055]
[1643718885243,0.07900047,38714.0,38708.0,0.29698055]
[1643718885646,0.07900047,38714.0,38701.0,0.064591]
[1643718886043,0.07900047,38714.0,38700.0,0.064588]
[1643718886247,0.40276318,38710.0,38700.0,0.064588]
[1643718886487,0.00134309,38709.0,38708.0,0.02056352]
[1643718886687,0.35131109,38709.0,38708.0,0.02056352]
[1643718886887,0.35131109,38709.0,38705.0,0.26478924]
[1643718887088,0.00134309,38709.0,38705.0,0.26478924]
[1643718887487,0.1,38713.0,38705.0,0.26478924]
[1643718887694,0.00134309,38709.0,38706.0,0.21558092]
[1643718887893,0.00134309,38709.0,38707.0,0.349968]
[1643718888091,0.00134309,38709.0,38708.0,0.84179119]
[1643718888291,0.00134309,38709.0,38708.0,0.35582839]
[1643718888488,0.00134309,38709.0,38708.0,0.59175919]
[1643718888691,0.48727518,38722.0,38711.0,0.24117197]
[1643718888893,0.00537156,38716.0,38711.0,0.24117197]
[1643718889991,0.001,38719.0,38712.0,0.064575]
[1643718890239,0.24150711,38721.0,38712.0,0.064575]
[1643718890240,0.00537156,38721.0,38713.0,0.22147964]
[1643718890641,0.00537156,38721.0,38713.0,0.2859308]
[1643718890841,0.00537156,38721.0,38714.0,0.462135]
[1643718891037,0.0023125,38724.0,38718.0,0.0998036]
[1643718891241,0.0023125,38724.0,38723.0,0.60586039]
[1643718891438,0.0023125,38724.0,38723.0,0.349968]
[1643718891638,0.0023125,38724.0,38723.0,0.05]
[1643718891838,0.0023125,38724.0,38723.0,0.0476]
[1643718892238,0.0023125,38724.0,38716.0,0.3886]
[1643718892437,0.0023125,38724.0,38713.0,0.0476]
[1643718892438,0.36773605,38721.0,38713.0,0.0476]
[1643718892637,0.36773605,38721.0,38719.0,0.01925218]
[1643718893336,0.0023125,38724.0,38719.0,0.01925218]
[1643718893541,0.0023125,38724.0,38720.0,0.349968]
[1643718893888,0.0023125,38724.0,38719.0,0.064565]
[1643718893889,0.2367251,38722.0,38713.0,0.129129]
[1643718894087,0.2367251,38722.0,38718.0,0.01983118]
[1643718894486,0.2367251,38722.0,38713.0,0.129129]
[1643718894686,0.12873408,38723.0,38713.0,0.129129]
[1643718894885,0.14443796,38716.0,38713.0,0.129129]
[1643718895486,0.14443796,38716.0,38714.0,0.349968]
[1643718895686,0.14443796,38716.0,38713.0,0.129129]
[1643718896092,0.14443796,38716.0,38708.0,0.32723369]
[1643718896285,0.14443796,38716.0,38709.0,0.414545]
[1643718896687,0.14443796,38716.0,38709.0,0.02151407]
[1643718897188,0.10026963,38715.0,38709.0,0.02151407]
[1643718897658,0.14443796,38716.0,38707.0,0.16471677]
[1643718898050,0.14443796,38716.0,38708.0,0.23500346]
[1643718898249,0.14443796,38716.0,38709.0,0.41455]
[1643718898450,0.41064724,38719.0,38710.0,0.23500346]
[1643718898657,0.00133963,38717.0,38713.0,0.00586039]
[1643718898849,0.00133963,38717.0,38714.0,0.349968]
[1643718899051,0.0901128,38716.0,38709.0,0.064582]
[1643718899452,0.15572151,38713.0,38709.0,0.064582]
[1643718900051,0.15572151,38713.0,38706.0,0.00186603]
[1643718900452,0.21755251,38712.0,38706.0,0.00186603]
[1643718900655,0.21755251,38712.0,38707.0,0.01804626]
[1643718900656,0.23359676,38711.0,38707.0,0.01804626]
[1643718900855,0.30918118,38702.0,38695.0,0.129194]
[1643718901054,0.30918118,38702.0,38691.0,0.25506639]
[1643718901256,0.30918118,38702.0,38691.0,0.129206]
[1643718901487,0.30918118,38702.0,38692.0,0.00586039]
[1643718901684,0.03609252,38706.0,38692.0,0.00586039]
[1643718901685,0.098512,38696.0,38692.0,0.00586039]
[1643718901886,0.13800873,38700.0,38693.0,0.349968]
[1643718902088,0.13800873,38700.0,38695.0,0.00186629]
[1643718902288,0.13800873,38700.0,38696.0,0.064602]
[1643718902587,0.13800873,38700.0,38697.0,0.25507602]
[1643718902787,0.13800873,38700.0,38695.0,0.00186629]
[1643718903189,0.26011105,38703.0,38693.0,0.00586039]
[1643718903386,0.26646059,38705.0,38696.0,0.00186628]
[1643718903790,0.10472744,38701.0,38699.0,0.26646167]
[1643718904189,0.25980894,38701.0,38696.0,0.00186628]
[1643718904387,0.25980894,38701.0,38691.0,0.26427239]
[1643718904588,0.23184387,38700.0,38698.0,0.0018662]
[1643718904792,0.25980894,38701.0,38698.0,0.0018662]
[1643718904793,0.10472744,38701.0,38698.0,0.0018662]
[1643718905234,0.10472744,38701.0,38698.0,0.28000421]
[1643718905533,0.10472744,38701.0,38698.0,0.27813801]
[1643718905734,0.10472744,38701.0,38698.0,0.28000422]
[1643718905932,0.26876477,38706.0,38698.0,0.28000422]
[1643718906132,0.03609252,38706.0,38699.0,0.00586039]
[1643718906538,0.03609252,38706.0,38704.0,0.00586039]
[1643718906735,0.03609252,38706.0,38705.0,0.05]
[1643718906935,0.03609252,38706.0,38705.0,0.78250912]
[1643718907133,0.03609252,38706.0,38705.0,0.899968]
[1643718907434,0.03609252,38706.0,38705.0,0.68737978]
[1643718907832,0.03609252,38706.0,38705.0,0.399968]
[1643718908233,0.03609252,38706.0,38705.0,0.349968]
[1643718908435,0.03609252,38706.0,38705.0,0.73247712]
[1643718908734,0.01019252,38706.0,38705.0,0.549968]
[1643718909386,0.01019252,38706.0,38705.0,0.7535252]
[1643718909785,0.01019252,38706.0,38705.0,0.449968]
[1643718909986,0.01019252,38706.0,38705.0,0.349968]
[1643718910690,0.01019252,38706.0,38704.0,0.00186497]
[1643718910888,0.01019252,38706.0,38705.0,1.23740793]